[Event "56th Rubinstein Memorial A 2020"]
[Site "Polanica Zdroj"]
[Date "2020.08.16"]
[Round "2.10"]
[White "Golecki, Jan"]
[Black "Pultinevicius, Paulius"]
[Result "1-0"]
[ECO "B13"]
[WhiteElo "2106"]
[BlackElo "2512"]
[Annotator "RC"]
[PlyCount "95"]
[EventDate "2020.08.15"]
[EventType "swiss"]
[EventCountry "POL"]
[SourceTitle "playchess.com"]
[Source "ChessBase"]
[SourceQuality "1"]
[TimeControl "40/5400+30:1800+30"]

1. e4 {[%emt 0:00:00]} c6 {[%emt 0:00:00]} 2. d4 {[%emt 0:00:00]} d5 {[%emt 0:00:00]} 3. exd5 {[%emt 0:00:00]} cxd5 {[%emt 0:00:00]} 4. Bd3 {[%emt 0:00:00]} Nc6 {[%emt 0:00:00]} 5. c3 {[%emt 0:00:00]} Nf6 {[%emt 0:00:00]} 6. Bf4 {[%emt 0:00:03]} g6 {[%emt 0:00:00]} 7. Nf3 {[%emt 0:02:28]} Bg7 {[%emt 0:00:00]} 8. O-O {[%emt 0:00:42]} O-O {[%emt 0:00:53]} 9. h3 {[%emt 0:10:22]} Bf5 {[%emt 0:05:20]} 10. Bxf5 {[%emt 0:03:00]} gxf5 {[%emt 0:00:07]} 11. Ne1 {[%emt 0:00:23]} e6 {[%emt 0:04:40]} 12. Nd3 {[%emt 0:01:24]} Ne7 {[%emt 0:00:17]} 13. Ne5 {[%emt 0:09:05]} Ne4 {[%emt 0:03:00]} 14. f3 {[%emt 0:00:38]} Nf6 {[%emt 0:06:04]} 15. Qd2 {[%emt 0:07:18]} Ng6 {[%emt 0:03:49]} 16. Nxg6 {[%emt 0:04:16]} hxg6 {[%emt 0:00:05]} 17. Bg5 {[%emt 0:03:32]} Qb6 {[%emt 0:03:26]} 18. Bxf6 {[%emt 0:06:08]} Bxf6 {[%emt 0:00:06]} 19. Kh1 {[%emt 0:01:12]} Rfc8 {[%emt 0:02:50]} 20. f4 {[%emt 0:04:51]} Kg7 {[%emt 0:00:55]} 21. a4 {[%emt 0:04:52]} Rh8 {[%emt 0:01:48]} 22. Na3 {[%emt 0:03:45]} Rac8 {[%emt 0:02:01]} 23. Rab1 {[%emt 0:04:14]} Qa5 {[%emt 0:09:00]} 24. Qd1 {[%emt 0:01:25]} Rh4 {[%emt 0:01:23]} 25. Rf3 {[%emt 0:03:04]} Be7 {[%emt 0:02:13]} 26. b4 {[%emt 0:08:46]} Qc7 {[%emt 0:00:25]} 27. Qf1 {[%emt 0:00:45]} a6 {[%emt 0:01:12]} 28. Rb2 {[%emt 0:09:33]} Bd6 {[%emt 0:01:16]} 29. g3 {[%emt 0:00:34]} Rhh8 {[%emt 0:01:06]} 30. Kg2 {[%emt 0:02:13]} Qe7 {[%emt 0:01:54]} 31. h4 {[%emt 0:01:57]} a5 {[%emt 0:01:25]} 32. Nb5 {[%emt 0:02:24]} axb4 {[%emt 0:00:33]} 33. Nxd6 {[%emt 0:00:24]} Qxd6 {[%emt 0:00:04]} 34. Rxb4 {[%emt 0:00:04]} Rxc3 {[%emt 0:00:26]} 35. Rxb7 {[%emt 0:01:18]} Rc2+ {[%emt 0:01:46]} 36. Rf2 {[%emt 0:01:05]} Rhc8 {[%emt 0:01:34]} 37. Rxc2 {[%emt 0:03:22]} Rxc2+ {[%emt 0:00:06]} 38. Kh3 {[%emt 0:00:02]} Ra2 {[%emt 0:17:48]} 39. Qb5 {[%emt 0:00:31]} Qf8 {[%emt 0:19:43]} 40. Qd7 {[%emt 0:00:00]} Re2 {[%emt 0:00:00]} 41. a5 {[%emt 0:03:45]} g5 {[%emt 0:07:32]} 42. fxg5 {[%emt 0:01:33]} f4 {[%emt 0:00:05]} 43. Qc7 {[%emt 0:10:28]} e5 {[%emt 0:08:37]} 44. dxe5 {[%emt 0:05:48]} fxg3 {[%emt 0:03:31]} 45. Qc3 {[%emt 0:10:08]} Re4 {[%emt 0:06:57]} 46. e6+ {[%emt 0:03:06]} d4 {[%emt 0:00:12]} 47. Qc6 {[%emt 0:00:35]} g2 {[%emt 0:00:18]} 48. Kxg2 {[%emt 0:00:34]} 1-0

[Event "56th Rubinstein Memorial A 2020"]
[Site "Polanica Zdroj"]
[Date "2020.08.16"]
[Round "2.12"]
[White "Marszalek, Maciej"]
[Black "Turski, Bartlomiej"]
[Result "1/2-1/2"]
[ECO "A49"]
[WhiteElo "2315"]
[BlackElo "1985"]
[Annotator "ChessBase"]
[PlyCount "61"]
[EventDate "2020.08.15"]
[EventType "swiss"]
[EventCountry "POL"]
[SourceTitle "playchess.com"]
[Source "ChessBase"]
[SourceQuality "1"]
[TimeControl "40/5400+30:1800+30"]

1. d4 {[%emt 0:00:00]} Nf6 {[%emt 0:00:00]} 2. Nf3 {[%emt 0:00:00]} g6 {[%emt 0:00:00]} 3. g3 {[%emt 0:00:00]} Bg7 {[%emt 0:00:00]} 4. Bg2 {[%emt 0:00:00]} O-O {[%emt 0:00:10]} 5. O-O {[%emt 0:00:00]} d6 {[%emt 0:00:06]} 6. b3 {[%emt 0:00:00]} Nbd7 {[%emt 0:09:26]} 7. Bb2 {[%emt 0:01:17]} c5 {[%emt 0:01:12]} 8. c4 {[%emt 0:00:25]} Qc7 {[%emt 0:10:27]} 9. Nc3 {[%emt 0:00:50]} b6 {[%emt 0:11:48]} 10. e4 {[%emt 0:03:53]} Bb7 {[%emt 0:04:02]} 11. Re1 {[%emt 0:00:19]} a6 {[%emt 0:16:16]} 12. h3 {[%emt 0:03:26]} e6 {[%emt 0:07:35]} 13. Rc1 {[%emt 0:02:58]} cxd4 {[%emt 0:01:40]} 14. Nxd4 {[%emt 0:00:17]} Rad8 {[%emt 0:02:55]} 15. Qe2 {[%emt 0:01:53]} Qb8 {[%emt 0:00:47]} 16. Rcd1 {[%emt 0:03:36]} Rfe8 {[%emt 0:02:44]} 17. Qc2 {[%emt 0:04:12]} Qa8 {[%emt 0:03:15]} 18. Bc1 {[%emt 0:26:46]} Rc8 {[%emt 0:08:47]} 19. Nf3 {[%emt 0:02:47]} b5 {[%emt 0:05:25]} 20. Nd2 {[%emt 0:06:48]} d5 {[%emt 0:06:45]} 21. exd5 {[%emt 0:01:33]} exd5 {[%emt 0:00:36]} 22. Rxe8+ {[%emt 0:02:32]} Nxe8 {[%emt 0:00:36]} 23. Nf1 {[%emt 0:01:37]} dxc4 {[%emt 0:01:00]} 24. Nd5 {[%emt 0:00:24]} Bxd5 {[%emt 0:02:25]} 25. Bxd5 {[%emt 0:00:27]} Qa7 {[%emt 0:00:12]} 26. bxc4 {[%emt 0:04:42]} bxc4 {[%emt 0:01:50]} 27. Be3 {[%emt 0:01:39]} Qc7 {[%emt 0:00:50]} 28. Qxc4 {[%emt 0:03:38]} Qxc4 {[%emt 0:00:06]} 29. Bxc4 {[%emt 0:00:01]} Rxc4 {[%emt 0:00:08]} 30. Rxd7 {[%emt 0:00:02]} f5 {[%emt 0:01:12]} 31. Rd2 {[%emt 0:12:18]} 1/2-1/2

[Event "56th Rubinstein Memorial A 2020"]
[Site "Polanica Zdroj"]
[Date "2020.08.16"]
[Round "2.15"]
[White "Kasperek, Ryszard"]
[Black "Siekanska, Maria"]
[Result "1-0"]
[ECO "B81"]
[WhiteElo "2202"]
[BlackElo "1928"]
[Annotator "RC"]
[PlyCount "45"]
[EventDate "2020.08.15"]
[EventType "swiss"]
[EventCountry "POL"]
[SourceTitle "playchess.com"]
[Source "ChessBase"]
[SourceQuality "1"]
[TimeControl "40/5400+30:1800+30"]

1. e4 {[%emt 0:00:00]} c5 {[%emt 0:00:00]} 2. Nf3 {[%emt 0:00:00]} e6 {[%emt 0:00:00]} 3. d4 {[%emt 0:00:00]} cxd4 {[%emt 0:00:00]} 4. Nxd4 {[%emt 0:00:00]} Nf6 {[%emt 0:00:00]} 5. Nc3 {[%emt 0:00:24]} d6 {[%emt 0:00:02]} 6. g4 {[%emt 0:01:08]} Nc6 {[%emt 0:00:09]} 7. g5 {[%emt 0:00:27]} Nd7 {[%emt 0:00:08]} 8. Be3 {[%emt 0:00:09]} Be7 {[%emt 0:00:13]} 9. h4 {[%emt 0:01:22]} O-O {[%emt 0:00:27]} 10. Qd2 {[%emt 0:00:31]} Nde5 {[%emt 0:00:52]} 11. O-O-O {[%emt 0:06:04]} Ng4 {[%emt 0:00:28]} 12. Ndb5 {[%emt 0:09:52]} Nxe3 {[%emt 0:01:54]} 13. Qxe3 {[%emt 0:03:05]} a6 {[%emt 0:06:23]} 14. Nxd6 {[%emt 0:04:04]} Bxd6 {[%emt 0:00:17]} 15. e5 {[%emt 0:00:13]} Nxe5 {[%emt 0:08:04]} 16. Ne4 {[%emt 0:02:16]} Qa5 {[%emt 0:00:54]} 17. Nxd6 {[%emt 0:06:31]} Nc6 {[%emt 0:13:46]} 18. Bc4 {[%emt 0:20:15]} b5 {[%emt 0:05:18]} 19. Bb3 {[%emt 0:02:17]} Ne7 {[%emt 0:06:31]} 20. h5 {[%emt 0:08:19]} Nd5 {[%emt 0:01:36]} 21. Qe5 {[%emt 0:01:46]} Ra7 {[%emt 0:06:04]} 22. Nxc8 {[%emt 0:06:31]} Rxc8 {[%emt 0:00:15]} 23. h6 {[%emt 0:00:07]} 1-0

[Event "56th Rubinstein Memorial A 2020"]
[Site "Polanica Zdroj"]
[Date "2020.08.16"]
[Round "2.18"]
[White "Hertlein, Irena"]
[Black "Poltorak, Sebastian"]
[Result "0-1"]
[ECO "A45"]
[WhiteElo "1905"]
[BlackElo "1974"]
[Annotator "ChessBase"]
[PlyCount "64"]
[EventDate "2020.08.15"]
[EventType "swiss"]
[EventCountry "POL"]
[SourceTitle "playchess.com"]
[Source "ChessBase"]
[SourceQuality "1"]
[TimeControl "40/5400+30:1800+30"]

1. d4 {[%emt 0:00:00]} Nf6 {[%emt 0:00:00]} 2. Bf4 {[%emt 0:00:00]} b6 {[%emt 0:00:00]} 3. e3 {[%emt 0:00:13]} Bb7 {[%emt 0:00:00]} 4. Nf3 {[%emt 0:00:39]} g6 {[%emt 0:00:05]} 5. Nbd2 {[%emt 0:01:07]} Bg7 {[%emt 0:00:16]} 6. Be2 {[%emt 0:00:46]} d6 {[%emt 0:00:38]} 7. h3 {[%emt 0:01:06]} O-O {[%emt 0:00:07]} 8. O-O {[%emt 0:00:17]} Nfd7 {[%emt 0:00:06]} 9. Bh2 {[%emt 0:06:16]} e5 {[%emt 0:00:12]} 10. c4 {[%emt 0:03:31]} Qe7 {[%emt 0:01:29]} 11. d5 {[%emt 0:09:47]} a5 {[%emt 0:03:08]} 12. Rb1 {[%emt 0:06:46]} f5 {[%emt 0:03:01]} 13. Qc2 {[%emt 0:05:08]} Nc5 {[%emt 0:05:16]} 14. b3 {[%emt 0:02:10]} Nbd7 {[%emt 0:03:14]} 15. a3 {[%emt 0:00:37]} e4 {[%emt 0:00:57]} 16. Ne1 {[%emt 0:13:27]} Ne5 {[%emt 0:05:15]} 17. b4 {[%emt 0:00:15]} axb4 {[%emt 0:00:44]} 18. axb4 {[%emt 0:00:06]} Ncd7 {[%emt 0:00:06]} 19. Nb3 {[%emt 0:02:22]} b5 {[%emt 0:18:22]} 20. Na5 {[%emt 0:18:28]} Rfb8 {[%emt 0:00:58]} 21. Nxb7 {[%emt 0:00:36]} Rxb7 {[%emt 0:00:06]} 22. cxb5 {[%emt 0:00:21]} Rba7 {[%emt 0:03:11]} 23. Bc4 {[%emt 0:01:38]} Nxc4 {[%emt 0:01:43]} 24. Qxc4 {[%emt 0:00:07]} Nb6 {[%emt 0:03:27]} 25. Qc6 {[%emt 0:00:29]} Ra3 {[%emt 0:01:08]} 26. Rc1 {[%emt 0:08:44]} R8a7 {[%emt 0:00:26]} 27. f3 {[%emt 0:07:35]} Rxe3 {[%emt 0:02:51]} 28. fxe4 {[%emt 0:00:08]} Qxe4 {[%emt 0:00:57]} 29. Kh1 {[%emt 0:10:06]} Ra2 {[%emt 0:02:00]} 30. Rg1 {[%emt 0:01:19]} Rxh3 {[%emt 0:00:31]} 31. Qxc7 {[%emt 0:00:37]} Rxh2+ {[%emt 0:00:06]} 32. Kxh2 {[%emt 0:00:03]} Qh4# 0-1

[Event "56th Rubinstein Memorial A 2020"]
[Site "Polanica Zdroj"]
[Date "2020.08.16"]
[Round "2.25"]
[White "Kolodziejski, Piotr"]
[Black "Stachecki, Mikolaj"]
[Result "1-0"]
[ECO "B54"]
[WhiteElo "1928"]
[BlackElo "1806"]
[Annotator "RC"]
[PlyCount "45"]
[EventDate "2020.08.15"]
[EventType "swiss"]
[EventCountry "POL"]
[SourceTitle "playchess.com"]
[Source "ChessBase"]
[SourceQuality "1"]
[TimeControl "40/5400+30:1800+30"]

1. e4 {[%emt 0:00:00]} c5 {[%emt 0:00:00]} 2. Nf3 {[%emt 0:00:00]} d6 {[%emt 0:00:00]} 3. d4 {[%emt 0:00:00]} cxd4 {[%emt 0:00:00]} 4. Nxd4 {[%emt 0:00:03]} Nf6 {[%emt 0:00:00]} 5. f3 {[%emt 0:00:40]} e5 {[%emt 0:00:12]} 6. Nb3 {[%emt 0:00:29]} Nc6 {[%emt 0:01:44]} 7. c4 {[%emt 0:04:25]} Be7 {[%emt 0:26:39]} 8. Be3 {[%emt 0:04:26]} O-O {[%emt 0:00:21]} 9. Nc3 {[%emt 0:01:40]} Be6 {[%emt 0:00:18]} 10. Be2 {[%emt 0:04:35]} Rc8 {[%emt 0:12:51]} 11. O-O {[%emt 0:04:01]} Na5 {[%emt 0:13:00]} 12. Nxa5 {[%emt 0:04:22]} Qxa5 {[%emt 0:00:13]} 13. Nd5 {[%emt 0:04:58]} Nxd5 {[%emt 0:06:26]} 14. cxd5 {[%emt 0:02:59]} Bd7 {[%emt 0:00:02]} 15. Qb3 {[%emt 0:09:26]} b5 {[%emt 0:05:26]} 16. g4 {[%emt 0:05:30]} Bd8 {[%emt 0:02:40]} 17. Rac1 {[%emt 0:04:57]} Bb6 {[%emt 0:00:42]} 18. Bxb6 {[%emt 0:04:45]} Qxb6+ {[%emt 0:00:06]} 19. Kg2 {[%emt 0:00:22]} Rc7 {[%emt 0:07:59]} 20. Rxc7 {[%emt 0:08:52]} Qxc7 {[%emt 0:00:04]} 21. f4 {[%emt 0:02:40]} f6 {[%emt 0:11:33]} 22. fxe5 {[%emt 0:04:53]} dxe5 {[%emt 0:02:25]} 23. d6+ {[%emt 0:01:17]} 1-0

[Event "56th Rubinstein Memorial A 2020"]
[Site "Polanica Zdroj"]
[Date "2020.08.16"]
[Round "2.26"]
[White "Topola, Rafal"]
[Black "Mirowska, Oliwia"]
[Result "1/2-1/2"]
[ECO "B12"]
[WhiteElo "1808"]
[BlackElo "1898"]
[Annotator "NA"]
[PlyCount "63"]
[EventDate "2020.08.15"]
[EventType "swiss"]
[EventCountry "POL"]
[SourceTitle "playchess.com"]
[Source "ChessBase"]
[SourceQuality "1"]
[TimeControl "40/5400+30:1800+30"]

1. e4 {[%emt 0:00:00]} c6 {[%emt 0:00:00]} 2. d4 {[%emt 0:00:00]} g6 {[%emt 0:00:00]} 3. Nc3 {[%emt 0:00:42]} Bg7 {[%emt 0:00:00]} 4. Nf3 {[%emt 0:01:21]} d5 {[%emt 0:03:33]} 5. Bf4 {[%emt 0:06:04]} Qb6 {[%emt 0:04:57]} 6. a3 {[%emt 0:11:34]} Bg4 {[%emt 0:14:18]} 7. e5 {[%emt 0:25:04]} Nh6 {[%emt 0:06:50]} 8. Bxh6 {[%emt 0:02:40]} Bxh6 {[%emt 0:00:13]} 9. Be2 {[%emt 0:00:24]} Nd7 {[%emt 0:04:52]} 10. O-O {[%emt 0:06:10]} O-O {[%emt 0:04:34]} 11. b4 {[%emt 0:01:26]} Qc7 {[%emt 0:01:44]} 12. h3 {[%emt 0:02:22]} Bxf3 {[%emt 0:14:17]} 13. Bxf3 {[%emt 0:00:05]} e6 {[%emt 0:00:21]} 14. Be2 {[%emt 0:01:17]} b6 {[%emt 0:00:26]} 15. f4 {[%emt 0:01:14]} a6 {[%emt 0:01:01]} 16. Na4 {[%emt 0:02:47]} c5 {[%emt 0:01:27]} 17. c3 {[%emt 0:01:02]} Rfc8 {[%emt 0:15:34]} 18. g4 {[%emt 0:02:19]} cxd4 {[%emt 0:03:02]} 19. cxd4 {[%emt 0:00:32]} Qc2 {[%emt 0:01:33]} 20. g5 {[%emt 0:00:51]} Bf8 {[%emt 0:00:28]} 21. Qxc2 {[%emt 0:01:42]} Rxc2 {[%emt 0:00:10]} 22. Bd3 {[%emt 0:00:02]} Rcc8 {[%emt 0:06:37]} 23. Rfc1 {[%emt 0:00:10]} b5 {[%emt 0:00:25]} 24. Rxc8 {[%emt 0:01:48]} Rxc8 {[%emt 0:00:08]} 25. Nc5 {[%emt 0:00:04]} Bxc5 {[%emt 0:05:53]} 26. bxc5 {[%emt 0:00:01]} Nb8 {[%emt 0:00:19]} 27. Kf2 {[%emt 0:00:01]} Kg7 {[%emt 0:00:30]} 28. a4 {[%emt 0:02:40]} b4 {[%emt 0:00:29]} 29. a5 {[%emt 0:00:28]} Rc7 {[%emt 0:00:58]} 30. Rb1 {[%emt 0:02:09]} Rb7 {[%emt 0:00:09]} 31. Ke3 {[%emt 0:00:07]} Kf8 {[%emt 0:01:25]} 32. Rb3 {[%emt 0:09:45]} 1/2-1/2

[Event "56th Rubinstein Memorial A 2020"]
[Site "Polanica Zdroj"]
[Date "2020.08.16"]
[Round "2.27"]
[White "Dytman, Radoslaw"]
[Black "Galant, Ireneusz"]
[Result "0-1"]
[ECO "A22"]
[WhiteElo "1867"]
[BlackElo "1803"]
[Annotator "NA"]
[PlyCount "144"]
[EventDate "2020.08.15"]
[EventType "swiss"]
[EventCountry "POL"]
[SourceTitle "playchess.com"]
[Source "ChessBase"]
[SourceQuality "1"]
[TimeControl "40/5400+30:1800+30"]

1. c4 {[%emt 0:00:00]} e5 {[%emt 0:00:00]} 2. Nc3 {[%emt 0:00:00]} Nf6 {[%emt 0:01:21]} 3. g3 {[%emt 0:00:00]} Bb4 {[%emt 0:00:55]} 4. Bg2 {[%emt 0:00:57]} Bxc3 {[%emt 0:00:48]} 5. dxc3 {[%emt 0:00:23]} h6 {[%emt 0:01:09]} 6. Nf3 {[%emt 0:02:16]} d6 {[%emt 0:01:07]} 7. O-O {[%emt 0:01:32]} O-O {[%emt 0:00:16]} 8. h3 {[%emt 0:02:51]} a5 {[%emt 0:05:14]} 9. Be3 {[%emt 0:08:53]} Qe7 {[%emt 0:12:07]} 10. a4 {[%emt 0:12:44]} c6 {[%emt 0:05:18]} 11. Qc2 {[%emt 0:08:36]} Nh7 {[%emt 0:32:27]} 12. Nh4 {[%emt 0:08:05]} Qe6 {[%emt 0:02:24]} 13. Be4 {[%emt 0:28:46]} f5 {[%emt 0:18:24]} 14. Nxf5 {[%emt 0:03:33]} Rxf5 {[%emt 0:02:21]} 15. g4 {[%emt 0:00:36]} Rf6 {[%emt 0:03:57]} 16. Bxh7+ {[%emt 0:00:21]} Kh8 {[%emt 0:00:07]} 17. Bf5 {[%emt 0:01:15]} Qe8 {[%emt 0:00:55]} 18. Be4 {[%emt 0:05:18]} Be6 {[%emt 0:01:12]} 19. Qd3 {[%emt 0:00:27]} Na6 {[%emt 0:00:28]} 20. Rad1 {[%emt 0:03:30]} Rd8 {[%emt 0:02:43]} 21. Bg2 {[%emt 0:04:42]} Rd7 {[%emt 0:01:14]} 22. b3 {[%emt 0:02:04]} d5 {[%emt 0:03:38]} 23. cxd5 {[%emt 0:00:31]} Bxd5 {[%emt 0:00:31]} 24. c4 {[%emt 0:02:10]} Be6 {[%emt 0:00:19]} 25. Qe4 {[%emt 0:00:10]} Rxd1 {[%emt 0:02:07]} 26. Rxd1 {[%emt 0:00:06]} Bg8 {[%emt 0:00:35]} 27. f4 {[%emt 0:00:57]} Re6 {[%emt 0:00:21]} 28. f5 Re7 {[%emt 0:00:08]} 29. g5 {[%emt 0:01:54]} Qh5 {[%emt 0:01:31]} 30. Qg4 {[%emt 0:01:14]} Qxg4 {[%emt 0:00:29]} 31. hxg4 {[%emt 0:00:03]} hxg5 {[%emt 0:00:27]} 32. Kf2 {[%emt 0:00:56]} g6 {[%emt 0:00:20]} 33. fxg6 {[%emt 0:00:50]} Kg7 {[%emt 0:00:12]} 34. Bxg5 {[%emt 0:00:23]} Re6 {[%emt 0:00:43]} 35. Be4 {[%emt 0:00:26]} Nc5 {[%emt 0:00:05]} 36. Bf5 {[%emt 0:00:25]} Re8 {[%emt 0:00:14]} 37. Be3 {[%emt 0:00:43]} Nxb3 {[%emt 0:00:50]} 38. Rd7+ {[%emt 0:00:47]} Kf6 {[%emt 0:00:17]} 39. Rd6+ {[%emt 0:00:20]} Ke7 {[%emt 0:00:34]} 40. Rd7+ {[%emt 0:00:00]} Kf6 {[%emt 0:00:00]} 41. Rxb7 {[%emt 0:16:23]} Bxc4 {[%emt 0:01:33]} 42. Bc2 {[%emt 0:03:36]} Nd4 {[%emt 0:03:52]} 43. g5+ {[%emt 0:00:53]} Ke6 {[%emt 0:00:18]} 44. Bxd4 {[%emt 0:00:50]} exd4 {[%emt 0:00:09]} 45. g7 {[%emt 0:04:52]} Kd6 {[%emt 0:01:11]} 46. Bd3 {[%emt 0:02:46]} Bd5 {[%emt 0:03:19]} 47. Ra7 {[%emt 0:02:15]} c5 {[%emt 0:02:36]} 48. Ra6+ {[%emt 0:00:35]} Kc7 {[%emt 0:04:19]} 49. Rxa5 {[%emt 0:00:23]} Kb6 {[%emt 0:00:44]} 50. Rb5+ {[%emt 0:01:03]} Kc6 {[%emt 0:00:32]} 51. Rb1 {[%emt 0:00:58]} Re7 {[%emt 0:00:13]} 52. Bb5+ {[%emt 0:01:20]} Kd6 {[%emt 0:00:13]} 53. g8=Q {[%emt 0:00:52]} Bxg8 {[%emt 0:00:08]} 54. Rh1 {[%emt 0:00:17]} c4 {[%emt 0:08:07]} 55. Rc1 {[%emt 0:00:40]} Kc5 {[%emt 0:01:22]} 56. Ke1 {[%emt 0:01:01]} Rg7 {[%emt 0:00:15]} 57. Kd2 {[%emt 0:00:23]} Rxg5 {[%emt 0:00:19]} 58. Rc2 {[%emt 0:00:34]} Rg2 {[%emt 0:00:26]} 59. Ke1 {[%emt 0:00:29]} Kb4 {[%emt 0:02:27]} 60. Kf1 {[%emt 0:00:35]} Rg5 {[%emt 0:01:35]} 61. Rc1 {[%emt 0:00:28]} Bd5 {[%emt 0:01:02]} 62. Kf2 {[%emt 0:00:29]} Rg2+ {[%emt 0:01:04]} 63. Kf1 {[%emt 0:00:05]} Rh2 {[%emt 0:00:21]} 64. Ke1 {[%emt 0:00:30]} Rh1+ {[%emt 0:00:38]} 65. Kd2 {[%emt 0:00:04]} c3+ {[%emt 0:01:06]} 66. Kc2 {[%emt 0:00:04]} Be4+ {[%emt 0:02:04]} 67. Bd3 {[%emt 0:00:02]} Bxd3+ {[%emt 0:00:14]} 68. exd3 {[%emt 0:00:05]} Rh2+ {[%emt 0:01:51]} 69. Kb1 {[%emt 0:00:14]} Rd2 {[%emt 0:00:35]} 70. Rc2 {[%emt 0:00:32]} Rxd3 {[%emt 0:00:27]} 71. Ra2 {[%emt 0:00:07]} Rd1+ {[%emt 0:00:10]} 72. Kc2 {[%emt 0:00:03]} Rd2+ {[%emt 0:00:06]} 0-1

[Event "56th Rubinstein Memorial A 2020"]
[Site "Polanica Zdroj"]
[Date "2020.08.17"]
[Round "3.2"]
[White "Lukasiewicz, Krzysztof"]
[Black "Chomczyk, Marek"]
[Result "1-0"]
[ECO "A45"]
[WhiteElo "2343"]
[BlackElo "2221"]
[Annotator "ChessBase"]
[PlyCount "69"]
[EventDate "2020.08.15"]
[EventType "swiss"]
[EventCountry "POL"]
[SourceTitle "playchess.com"]
[Source "ChessBase"]
[SourceQuality "1"]
[TimeControl "40/5400+30:1800+30"]

1. d4 {[%emt 0:02:11]} Nf6 {[%emt 0:00:00]} 2. Bf4 {[%emt 0:00:04]} d5 {[%emt 0:01:03]} 3. e3 {[%emt 0:00:19]} c5 {[%emt 0:00:39]} 4. Nf3 {[%emt 0:00:25]} Nc6 {[%emt 0:00:14]} 5. Nbd2 {[%emt 0:00:08]} e6 {[%emt 0:01:02]} 6. c3 {[%emt 0:00:05]} Be7 {[%emt 0:00:09]} 7. Ne5 {[%emt 0:00:47]} Nxe5 {[%emt 0:02:40]} 8. dxe5 {[%emt 0:01:25]} Nd7 {[%emt 0:00:47]} 9. Bd3 {[%emt 0:01:47]} g5 {[%emt 0:15:38]} 10. Bg3 {[%emt 0:00:36]} h5 {[%emt 0:00:08]} 11. f4 {[%emt 0:07:41]} c4 {[%emt 0:06:40]} 12. Bc2 {[%emt 0:11:58]} Qb6 {[%emt 0:16:18]} 13. O-O {[%emt 0:02:44]} h4 {[%emt 0:10:12]} 14. Bf2 {[%emt 0:02:48]} h3 {[%emt 0:01:01]} 15. b3 {[%emt 0:16:24]} hxg2 {[%emt 0:18:28]} 16. Kxg2 {[%emt 0:05:09]} Nc5 {[%emt 0:00:06]} 17. e4 {[%emt 0:06:34]} Qc6 {[%emt 0:03:09]} 18. fxg5 {[%emt 0:10:19]} Bd7 {[%emt 0:02:17]} 19. Be3 {[%emt 0:04:11]} Nd3 {[%emt 0:05:15]} 20. Qf3 {[%emt 0:07:36]} Nxe5 {[%emt 0:04:20]} 21. Qf4 {[%emt 0:00:03]} Bd6 {[%emt 0:04:18]} 22. exd5 {[%emt 0:01:12]} Qc7 {[%emt 0:01:49]} 23. Ne4 {[%emt 0:02:20]} O-O-O {[%emt 0:01:17]} 24. Bd4 {[%emt 0:03:44]} f6 {[%emt 0:00:11]} 25. gxf6 {[%emt 0:00:10]} Rh5 {[%emt 0:01:53]} 26. Rae1 {[%emt 0:03:24]} Rg8+ {[%emt 0:02:51]} 27. Kh1 {[%emt 0:00:13]} Nf7 {[%emt 0:00:30]} 28. Nxd6+ {[%emt 0:00:05]} Nxd6 {[%emt 0:00:27]} 29. Be5 {[%emt 0:02:16]} Qa5 {[%emt 0:00:35]} 30. Bxd6 {[%emt 0:00:23]} Qxd5+ {[%emt 0:00:29]} 31. Be4 {[%emt 0:00:04]} Bc6 {[%emt 0:00:19]} 32. f7 {[%emt 0:01:09]} Rxh2+ {[%emt 0:00:42]} 33. Qxh2 {[%emt 0:00:05]} Qxe4+ {[%emt 0:00:15]} 34. Rxe4 {[%emt 0:00:04]} Bxe4+ {[%emt 0:00:06]} 35. Qg2 {[%emt 0:00:02]} 1-0

[Event "56th Rubinstein Memorial A 2020"]
[Site "Polanica Zdroj"]
[Date "2020.08.17"]
[Round "3.3"]
[White "Zochowski, Kacper"]
[Black "Vanduyfhuys, Daria"]
[Result "1-0"]
[ECO "B33"]
[WhiteElo "2278"]
[BlackElo "1985"]
[Annotator "ChessBase"]
[PlyCount "93"]
[EventDate "2020.08.15"]
[EventType "swiss"]
[EventCountry "POL"]
[SourceTitle "playchess.com"]
[Source "ChessBase"]
[SourceQuality "1"]
[TimeControl "40/5400+30:1800+30"]

1. e4 {[%emt 0:10:40]} c5 {[%emt 0:00:00]} 2. Nc3 {[%emt 0:00:07]} Nc6 {[%emt 0:00:00]} 3. Nge2 {[%emt 0:00:13]} Nf6 {[%emt 0:00:30]} 4. d4 {[%emt 0:00:09]} cxd4 {[%emt 0:00:11]} 5. Nxd4 {[%emt 0:00:04]} e5 {[%emt 0:00:25]} 6. Ndb5 {[%emt 0:00:52]} d6 {[%emt 0:00:10]} 7. Bg5 {[%emt 0:01:20]} a6 {[%emt 0:00:18]} 8. Na3 {[%emt 0:00:10]} b5 {[%emt 0:00:49]} 9. Bxf6 {[%emt 0:00:19]} gxf6 {[%emt 0:00:55]} 10. Nd5 {[%emt 0:00:21]} f5 {[%emt 0:00:54]} 11. g3 {[%emt 0:00:19]} fxe4 {[%emt 0:08:16]} 12. Bg2 {[%emt 0:00:23]} Bf5 {[%emt 0:01:27]} 13. f3 {[%emt 0:23:25]} Bg7 {[%emt 0:07:06]} 14. fxe4 {[%emt 0:01:05]} Be6 {[%emt 0:00:20]} 15. O-O {[%emt 0:01:35]} O-O {[%emt 0:00:37]} 16. c3 {[%emt 0:04:05]} Ne7 {[%emt 0:26:22]} 17. Nxe7+ {[%emt 0:14:59]} Qxe7 {[%emt 0:00:07]} 18. Nc2 {[%emt 0:00:36]} a5 {[%emt 0:08:27]} 19. Kh1 {[%emt 0:06:39]} Bh6 {[%emt 0:01:42]} 20. h4 {[%emt 0:19:02]} f6 {[%emt 0:06:53]} 21. Kh2 {[%emt 0:00:09]} Kh8 {[%emt 0:06:32]} 22. Bh3 {[%emt 0:02:53]} Rad8 {[%emt 0:03:14]} 23. Bxe6 {[%emt 0:01:41]} Qxe6 {[%emt 0:00:06]} 24. Qh5 {[%emt 0:03:40]} Kg7 {[%emt 0:01:54]} 25. Qf5 {[%emt 0:03:07]} Qxf5 {[%emt 0:00:31]} 26. exf5 {[%emt 0:00:24]} d5 {[%emt 0:01:07]} 27. Rfd1 {[%emt 0:00:27]} Rd7 {[%emt 0:01:08]} 28. Rd3 {[%emt 0:02:02]} Kf7 {[%emt 0:00:54]} 29. Rad1 {[%emt 0:00:18]} Rfd8 {[%emt 0:00:13]} 30. Kg2 {[%emt 0:02:34]} Ke7 {[%emt 0:01:09]} 31. Re1 {[%emt 0:00:25]} Kd6 {[%emt 0:01:18]} 32. Ne3 {[%emt 0:01:17]} Bxe3 {[%emt 0:14:30]} 33. Rexe3 {[%emt 0:00:25]} h5 {[%emt 0:00:09]} 34. Kh3 {[%emt 0:00:29]} e4 {[%emt 0:03:28]} 35. Rxe4 {[%emt 0:00:03]} Kc5 {[%emt 0:00:33]} 36. Re6 {[%emt 0:00:11]} Rd6 {[%emt 0:00:04]} 37. Rxd6 {[%emt 0:00:21]} Rxd6 {[%emt 0:00:14]} 38. g4 {[%emt 0:01:07]} hxg4+ {[%emt 0:00:05]} 39. Kxg4 {[%emt 0:00:02]} b4 {[%emt 0:00:28]} 40. Kh5 {[%emt 0:00:00]} bxc3 {[%emt 0:00:00]} 41. bxc3 {[%emt 0:05:11]} Kc4 {[%emt 0:01:20]} 42. Rh3 {[%emt 0:00:53]} d4 {[%emt 0:08:52]} 43. cxd4 {[%emt 0:00:12]} Kxd4 {[%emt 0:00:02]} 44. Kg6 {[%emt 0:00:14]} Ke5 {[%emt 0:00:05]} 45. h5 {[%emt 0:01:15]} Rd8 {[%emt 0:00:04]} 46. h6 {[%emt 0:00:46]} Rg8+ {[%emt 0:00:17]} 47. Kf7 {[%emt 0:00:24]} 1-0